lending/lending_fUSD_20250121
["ID","MTS","AMOUNT","RATE_DAILY","PERIOD"]
[349854010,1737461451853,-500.0,0.00020272,2]
[349854011,1737461451863,-500.0,0.00020272,2]
[349854012,1737461451873,-502.6024351,0.00020272,2]
[349854013,1737461451883,-500.0,0.00020272,2]
[349854014,1737461451892,-259.47837126,0.00020272,2]
[349854015,1737461451901,-500.0,0.00020272,2]
[349854016,1737461451910,-500.0,0.00020272,2]
[349854017,1737461451919,-822.45,0.00020272,2]
[349854018,1737461451928,-500.0,0.00020272,2]
[349854019,1737461451938,-583.99,0.00020272,2]
[349854020,1737461451947,-500.0,0.00020272,2]
[349854021,1737461451956,-500.0,0.00020272,2]
[349854022,1737461451965,-500.0,0.00020272,2]
[349854023,1737461451975,-500.0,0.00020272,2]
[349854024,1737461451985,-500.0,0.00020272,2]
[349854025,1737461451995,-500.0,0.00020272,2]
[349854026,1737461452004,-500.0,0.00020272,2]
[349854027,1737461452014,-500.0,0.00020272,2]
[349854028,1737461452023,-204.52862887,0.00020272,2]
[349854029,1737461452033,-500.0,0.00020272,2]
[349854030,1737461452044,-500.0,0.00020272,2]
[349854031,1737461452054,-600.84,0.00020272,2]
[349854032,1737461452063,-439.17138335,0.00020272,2]
[349854033,1737461452072,-500.0,0.00020272,2]
[349854034,1737461452083,-1307.78,0.00020272,2]
[349854035,1737461452094,-500.0,0.00020272,2]
[349854036,1737461452103,-500.0,0.00020272,2]
[349854037,1737461452113,-500.0,0.00020272,2]
[349854038,1737461452123,-569.36642969,0.00020272,2]
[349854039,1737461452133,-500.0,0.00020272,2]
[349854040,1737461452142,-500.0,0.00020272,2]
[349854041,1737461452152,-500.0,0.00020272,2]
[349854042,1737461452162,-500.0,0.00020272,2]
[349854043,1737461452172,-500.0,0.00020272,2]
[349854044,1737461452182,-500.0,0.00020272,2]
[349854045,1737461452192,-524.83618453,0.00020272,2]
[349854046,1737461452201,-500.0,0.00020272,2]
[349854047,1737461452211,-500.0,0.00020272,2]
[349854048,1737461452221,-500.0,0.00020272,2]
[349854049,1737461452231,-500.0,0.00020272,2]
[349854050,1737461452240,-500.0,0.00020272,2]
[349854051,1737461452252,-500.0,0.00020272,2]
[349854052,1737461452263,-500.0,0.00020272,2]
[349854053,1737461452273,-500.0,0.00020272,2]
[349854054,1737461452284,-500.0,0.00020272,2]
[349854055,1737461452299,-500.0,0.00020272,2]
[349854056,1737461452308,-500.0,0.00020272,2]
[349854057,1737461452317,-500.0,0.00020272,2]
[349854058,1737461452328,-500.0,0.00020272,2]
[349854059,1737461452337,-227.93806593,0.00020272,2]
[349854060,1737461452347,-292.54770968,0.00020273,2]
[349854061,1737461452356,-500.0,0.00020273,2]
[349854062,1737461452365,-500.0,0.00020273,2]
[349854063,1737461452377,-500.0,0.00020273,2]
[349854064,1737461452387,-500.0,0.00020273,2]
[349854065,1737461452396,-500.0,0.00020273,2]
[349854066,1737461452405,-500.0,0.00020273,2]
[349854067,1737461452415,-300.0,0.00020273,2]
[349854068,1737461452425,-500.0,0.00020273,2]
[349854069,1737461452434,-500.0,0.00020273,2]
[349854070,1737461452444,-500.0,0.00020273,2]
[349854071,1737461452453,-500.0,0.00020273,2]
[349854072,1737461452463,-500.0,0.00020273,2]
[349854073,1737461452472,-500.0,0.00020273,2]
[349854074,1737461452481,-566.77,0.00020273,2]
[349854075,1737461452491,-500.0,0.00020273,2]
[349854076,1737461452501,-500.0,0.00020273,2]
[349854077,1737461452510,-500.0,0.00020273,2]
[349854078,1737461452520,-500.0,0.00020273,2]
[349854079,1737461452529,-500.0,0.00020273,2]
[349854080,1737461452538,-314.26772388,0.00020273,2]
[349854081,1737461452549,-500.0,0.00020273,2]
[349854082,1737461452559,-500.0,0.00020273,2]
[349854083,1737461452568,-500.0,0.00020273,2]
[349854084,1737461452577,-626.71334353,0.00020273,2]
[349854085,1737461452587,-500.0,0.00020273,2]
[349854086,1737461452596,-1039.45,0.00020273,2]
[349854087,1737461452606,-500.0,0.00020273,2]
[349854088,1737461452615,-500.0,0.00020273,2]
[349854089,1737461452624,-500.0,0.00020273,2]
[349854090,1737461452671,-582.82,0.00020273,2]
[349854091,1737461452680,-440.0,0.00020273,2]
[349854092,1737461452690,-500.0,0.00020273,2]
[349854093,1737461452699,-500.0,0.00020273,2]
[349854094,1737461452708,-500.0,0.00020273,2]
[349854095,1737461452717,-500.0,0.00020273,2]
[349854096,1737461452727,-500.0,0.00020273,2]
[349854097,1737461452736,-500.0,0.00020273,2]
[349854098,1737461452745,-500.0,0.00020273,2]
[349854099,1737461452754,-500.0,0.00020273,2]
[349854100,1737461452763,-500.0,0.00020273,2]
[349854101,1737461452772,-500.0,0.00020273,2]
[349854102,1737461452781,-500.0,0.00020273,2]
[349854103,1737461452790,-500.0,0.00020273,2]
[349854104,1737461452800,-500.0,0.00020273,2]
[349854105,1737461452809,-500.0,0.00020273,2]
[349854106,1737461452818,-500.0,0.00020273,2]
[349854107,1737461452827,-500.0,0.00020273,2]
[349854108,1737461452837,-500.0,0.00020273,2]
[349854109,1737461452846,-500.0,0.00020273,2]
[349854110,1737461452855,-500.0,0.00020273,2]
[349854111,1737461452864,-500.0,0.00020273,2]
[349854112,1737461452874,-500.0,0.00020273,2]
[349854113,1737461452883,-500.0,0.00020273,2]
[349854114,1737461452892,-500.0,0.00020273,2]
[349854115,1737461452902,-500.0,0.00020273,2]
[349854116,1737461452912,-500.0,0.00020273,2]
[349854117,1737461452921,-500.0,0.00020273,2]
[349854118,1737461452931,-500.0,0.00020273,2]
[349854119,1737461452941,-500.0,0.00020273,2]
[349854120,1737461452951,-500.0,0.00020273,2]
[349854121,1737461452960,-1323.74,0.00020273,2]
[349854122,1737461452969,-500.0,0.00020273,2]
[349854123,1737461452979,-500.0,0.00020273,2]
[349854124,1737461452989,-647.7,0.00020273,2]
[349854125,1737461452999,-846.54,0.00020273,2]
[349854126,1737461453009,-500.0,0.00020273,2]
[349854127,1737461453018,-1000.0,0.00020273,2]
[349854128,1737461453028,-719.1,0.00020273,2]
[349854129,1737461453038,-500.0,0.00020273,2]
[349854130,1737461453049,-1158.43,0.00020273,2]
[349854131,1737461453059,-2520.56,0.0002028,2]
[349854132,1737461453069,-150.0,0.00020296,2]
[349854133,1737461453078,-5000.0,0.00020306,2]
[349854134,1737461453088,-408.42144047,0.00020321,2]
[349854135,1737461453097,-6667.59248049,0.00020332,2]
[349854136,1737461453108,-298.01,0.00020356,2]
[349854137,1737461453119,-2513.88,0.00020363,2]
[349854138,1737461453142,-177.74927331,0.00020378,2]
[349854139,1737461453154,-5000.0,0.00020378,2]
[349854140,1737461453165,-1833.0,0.000204,2]
[349854141,1737461453175,-514.66,0.00020409,2]
[349854142,1737461453186,-2110.78,0.0002043,2]
[349854143,1737461453196,-2548.66,0.00020434,2]
[349854144,1737461453207,-2562.06,0.00020444,2]
[349854145,1737461453219,-206.17630001,0.00020445,2]
[349854146,1737461453229,-524.13,0.00020446,2]
[349854147,1737461453239,-692.62,0.00020447,2]
[349854148,1737461453252,-1336.51,0.00020447,2]
[349854149,1737461453263,-6741.85,0.00020447,2]
[349854150,1737461453272,-615.77,0.00020447,2]
[349854151,1737461453281,-1334.1,0.00020447,2]
[349854152,1737461453291,-1481.38,0.00020447,2]
[349854153,1737461453303,-500.0,0.00020447,2]
[349854154,1737461453312,-2097.97,0.00020447,2]
[349854155,1737461453322,-589.95,0.00020447,2]
[349854156,1737461453333,-500.0,0.00020447,2]
[349854157,1737461453343,-959.96,0.00020447,2]
[349854158,1737461453353,-595.73,0.00020447,2]
[349854159,1737461453362,-500.0,0.00020447,2]
[349854160,1737461453371,-150.0,0.00020462,2]
[349854161,1737461453382,-1041.40743834,0.00020483,2]
[349854162,1737461453391,-5000.0,0.00020486,2]
[349854163,1737461453401,-150.0,0.00020494,2]
[349854164,1737461453411,-500.0,0.00020544,2]
[349854165,1737461453421,-385.638789,0.00020544,2]
[349854166,1737461453431,-663.07,0.00020544,2]
[349854167,1737461453440,-500.0,0.00020544,2]
[349854168,1737461453449,-670.94,0.00020544,2]
[349854169,1737461453459,-221.865687,0.00020544,2]
[349854170,1737461453469,-646.9,0.00020544,2]
[349854171,1737461453479,-500.0,0.00020544,2]
[349854172,1737461453489,-659.65,0.00020544,2]
[349854173,1737461453499,-1477.39,0.00020544,2]
[349854174,1737461453509,-644.28,0.00020544,2]
[349854175,1737461453519,-732.84,0.00020544,2]
[349854176,1737461453530,-500.0,0.00020544,2]
[349854177,1737461453539,-1178.62,0.00020544,2]
[349854178,1737461453550,-500.0,0.00020544,2]
[349854179,1737461453559,-1229.18,0.00020544,2]
[349854180,1737461453569,-939.27,0.00020544,2]
[349854181,1737461453579,-1317.35,0.00020544,2]
[349854182,1737461453588,-1423.55,0.00020544,2]
[349854183,1737461453598,-1041.93,0.00020544,2]
[349854184,1737461453608,-890.96,0.00020544,2]
[349854185,1737461453618,-760.13,0.00020544,2]
[349854186,1737461453628,-739.73,0.00020544,2]
[349854187,1737461453638,-633.13,0.00020544,2]
[349854188,1737461453648,-1676.92,0.00020544,2]
[349854189,1737461453657,-1682.96,0.00020544,2]
[349854190,1737461453666,-1175.89,0.00020544,2]
[349854191,1737461453676,-612.0,0.00020544,2]
[349854192,1737461453685,-581.49,0.00020544,2]
[349854193,1737461453695,-1621.97,0.00020544,2]
[349854194,1737461453704,-500.0,0.00020544,2]
[349854195,1737461453713,-740.55,0.00020544,2]
[349854196,1737461453723,-500.0,0.00020544,2]
[349854197,1737461453732,-307.96137911,0.00020544,2]
[349854198,1737461453742,-976.72,0.00020544,2]
[349854199,1737461453752,-1455.68,0.00020544,2]
[349854200,1737461453762,-694.7,0.00020544,2]
[349854201,1737461453772,-500.0,0.00020544,2]
[349854202,1737461453781,-1392.82,0.00020544,2]
[349854203,1737461453791,-1381.5,0.00020544,2]
[349854204,1737461453803,-435.57598189,0.00020545,2]
[349854205,1737461453813,-500.0,0.00020545,2]
[349854206,1737461453822,-500.0,0.00020545,2]
[349854207,1737461453832,-620.26,0.00020545,2]
[349854208,1737461453841,-500.0,0.00020545,2]
[349854209,1737461453851,-500.0,0.00020545,2]
[349854210,1737461453861,-506.74137757,0.00020545,2]
[349854211,1737461453870,-500.0,0.00020545,2]
[349854212,1737461453880,-500.0,0.00020545,2]
[349854213,1737461453890,-621.93,0.00020545,2]
[349854214,1737461453900,-500.0,0.00020545,2]
[349854215,1737461453909,-500.0,0.00020545,2]
[349854216,1737461453919,-500.0,0.00020545,2]
[349854217,1737461453928,-500.0,0.00020545,2]
[349854218,1737461453938,-500.0,0.00020545,2]
[349854219,1737461453947,-500.0,0.00020545,2]
[349854220,1737461453956,-500.0,0.00020545,2]
[349854221,1737461453965,-500.0,0.00020545,2]
[349854222,1737461453974,-500.0,0.00020545,2]
[349854223,1737461453984,-500.0,0.00020545,2]
[349854224,1737461453994,-500.0,0.00020545,2]
[349854225,1737461454003,-500.0,0.00020545,2]
[349854226,1737461454013,-500.0,0.00020545,2]
[349854227,1737461454022,-500.0,0.00020545,2]
[349854228,1737461454031,-500.0,0.00020545,2]
[349854229,1737461454041,-444.7682473,0.00020545,2]
[349854230,1737461454052,-500.0,0.00020545,2]
[349854231,1737461454062,-500.0,0.00020545,2]
[349854232,1737461454071,-484.75525471,0.00020545,2]
[349854233,1737461454080,-500.0,0.00020545,2]
[349854234,1737461454090,-500.0,0.00020545,2]
[349854235,1737461454099,-500.0,0.00020545,2]
[349854236,1737461454108,-500.0,0.00020545,2]
[349854237,1737461454117,-500.0,0.00020545,2]
[349854238,1737461454127,-500.0,0.00020545,2]
[349854239,1737461454136,-500.0,0.00020545,2]
[349854240,1737461454146,-500.0,0.00020545,2]
[349854241,1737461454156,-500.0,0.00020545,2]
[349854242,1737461454166,-500.0,0.00020545,2]
[349854243,1737461454176,-500.0,0.00020545,2]
[349854244,1737461454186,-500.0,0.00020545,2]
[349854245,1737461454195,-500.0,0.00020545,2]
[349854246,1737461454205,-500.0,0.00020545,2]
[349854247,1737461454214,-500.0,0.00020545,2]
[349854248,1737461454224,-500.0,0.00020545,2]
[349854249,1737461454233,-500.0,0.00020545,2]
[349854250,1737461454242,-500.0,0.00020545,2]
[349854251,1737461454253,-500.0,0.00020545,2]
[349854252,1737461454263,-500.0,0.00020545,2]
[349854253,1737461454272,-500.0,0.00020545,2]
[349854254,1737461454282,-500.0,0.00020545,2]
[349854255,1737461454291,-500.0,0.00020545,2]
[349854256,1737461454303,-500.0,0.00020545,2]
[349854257,1737461454313,-500.0,0.00020545,2]
[349854258,1737461454322,-500.0,0.00020545,2]
[349854259,1737461454332,-500.0,0.00020545,2]
[349854260,1737461454341,-500.0,0.00020545,2]
[349854261,1737461454350,-500.0,0.00020545,2]
[349854262,1737461454359,-500.0,0.00020545,2]
[349854263,1737461454369,-508.82,0.00020545,2]
[349854264,1737461454379,-500.0,0.00020545,2]
[349854265,1737461454389,-500.0,0.00020545,2]
[349854266,1737461454399,-500.0,0.00020545,2]
[349854267,1737461454408,-500.0,0.00020545,2]
[349854268,1737461454418,-522.84,0.00020545,2]
[349854269,1737461454427,-500.0,0.00020545,2]
[349854270,1737461454436,-500.0,0.00020545,2]
[349854271,1737461454446,-694.48,0.00020545,2]
[349854272,1737461454455,-500.0,0.00020545,2]
[349854273,1737461454465,-1041.86,0.00020545,2]
[349854274,1737461454475,-500.0,0.00020545,2]
[349854275,1737461454484,-500.0,0.00020545,2]
[349854276,1737461454493,-500.0,0.00020545,2]
[349854277,1737461454502,-653.88,0.00020545,2]
[349854278,1737461454512,-500.0,0.00020545,2]
[349854279,1737461454521,-1739.79,0.00020545,2]
[349854280,1737461454530,-500.0,0.00020545,2]
[349854281,1737461454540,-500.0,0.00020545,2]
[349854282,1737461454550,-500.0,0.00020545,2]
[349854283,1737461454560,-500.0,0.00020545,2]
[349854284,1737461454569,-621.93,0.00020545,2]
[349854285,1737461454578,-500.0,0.00020545,2]
[349854286,1737461454587,-500.0,0.00020545,2]
[349854287,1737461454597,-2637.98,0.00020545,2]
[349854288,1737461454606,-500.0,0.00020545,2]
[349854289,1737461454615,-941.37,0.00020545,2]
[349854290,1737461454626,-500.0,0.00020545,2]
[349854291,1737461454636,-679.17,0.00020545,2]
[349854292,1737461454645,-500.0,0.00020545,2]
[349854293,1737461454655,-500.0,0.00020545,2]
[349854294,1737461454664,-500.0,0.00020545,2]
[349854295,1737461454674,-500.0,0.00020545,2]
[349854296,1737461454684,-500.0,0.00020545,2]
[349854297,1737461454694,-541.48,0.00020545,2]
[349854298,1737461454703,-857.08,0.00020545,2]
[349854299,1737461454713,-462.9371027,0.00020545,2]
[349854300,1737461454722,-500.0,0.00020545,2]
[349854301,1737461454731,-2225.12,0.00020545,2]
[349854302,1737461454741,-500.0,0.00020545,2]
[349854303,1737461454750,-500.0,0.00020545,2]
[349854304,1737461454760,-500.0,0.00020545,2]
[349854305,1737461454769,-1274.41,0.00020545,2]
[349854306,1737461454779,-309.67,0.00020545,2]
[349854307,1737461454788,-500.0,0.00020545,2]
[349854308,1737461454799,-500.0,0.00020545,2]
[349854309,1737461454809,-1449.14,0.00020545,2]
[349854310,1737461454818,-500.0,0.00020545,2]
[349854311,1737461454827,-500.0,0.00020545,2]
[349854312,1737461454836,-500.0,0.00020545,2]
[349854313,1737461454846,-1597.85,0.00020545,2]
[349854314,1737461454855,-500.0,0.00020545,2]
[349854315,1737461454865,-500.0,0.00020545,2]
[349854316,1737461454874,-500.0,0.00020545,2]
[349854317,1737461454884,-500.0,0.00020545,2]
[349854318,1737461454893,-741.87,0.00020545,2]
[349854319,1737461454903,-500.0,0.00020545,2]
[349854320,1737461454912,-500.0,0.00020545,2]
[349854321,1737461454922,-1293.86,0.00020545,2]
[349854322,1737461454932,-500.0,0.00020545,2]
[349854323,1737461454941,-500.0,0.00020545,2]
[349854324,1737461454951,-1842.83,0.00020545,2]
[349854325,1737461454960,-500.0,0.00020545,2]
[349854326,1737461454970,-500.0,0.00020546,2]
[349854327,1737461454980,-500.0,0.00020546,2]
[349854328,1737461454990,-500.0,0.00020546,2]
[349854329,1737461454999,-500.0,0.00020546,2]
[349854330,1737461455009,-500.0,0.00020546,2]
[349854331,1737461455018,-508.13369328,0.00020546,2]
[349854332,1737461455028,-510.16,0.00020546,2]
[349854333,1737461455039,-514.66,0.00020546,2]
[349854334,1737461455051,-500.0,0.00020546,2]
[349854335,1737461455060,-500.0,0.00020546,2]
[349854336,1737461455070,-500.0,0.00020546,2]
[349854337,1737461455079,-522.77373854,0.00020546,2]
[349854338,1737461455089,-500.0,0.00020546,2]
[349854339,1737461455098,-500.0,0.00020546,2]
[349854340,1737461455108,-822.45,0.00020546,2]
[349854341,1737461455118,-500.0,0.00020546,2]
[349854342,1737461455128,-583.99,0.00020546,2]
[349854343,1737461455138,-500.0,0.00020546,2]
[349854344,1737461455147,-500.0,0.00020546,2]
[349854345,1737461455157,-500.0,0.00020546,2]
[349854346,1737461455167,-500.0,0.00020546,2]
[349854347,1737461455176,-500.0,0.00020546,2]
[349854348,1737461455186,-500.0,0.00020546,2]
[349854349,1737461455195,-338.42003843,0.00020546,2]
[349854350,1737461455205,-500.0,0.00020546,2]
[349854351,1737461455215,-500.0,0.00020546,2]
[349854352,1737461455225,-600.84,0.00020546,2]
[349854353,1737461455235,-500.0,0.00020546,2]
[349854354,1737461455245,-1307.78,0.00020546,2]
[349854355,1737461455259,-500.0,0.00020546,2]
[349854356,1737461455269,-500.0,0.00020546,2]
[349854357,1737461455278,-500.0,0.00020546,2]
[349854358,1737461455288,-500.0,0.00020546,2]
[349854359,1737461455300,-500.0,0.00020546,2]
[349854360,1737461455310,-500.0,0.00020546,2]
[349854361,1737461455319,-500.0,0.00020546,2]
[349854362,1737461455330,-500.0,0.00020546,2]
[349854363,1737461455340,-500.0,0.00020546,2]
[349854364,1737461455349,-500.0,0.00020546,2]
[349854365,1737461455359,-500.0,0.00020546,2]
[349854366,1737461455368,-161.98,0.00020546,2]
[349854367,1737461455378,-294.82772123,0.00020546,2]
[349854368,1737461455388,-500.0,0.00020546,2]
[349854369,1737461455398,-500.0,0.00020546,2]
[349854370,1737461455408,-500.0,0.00020546,2]
[349854371,1737461455418,-500.0,0.00020546,2]
[349854372,1737461455428,-500.0,0.00020546,2]
[349854373,1737461455438,-500.0,0.00020546,2]
[349854374,1737461455447,-500.0,0.00020546,2]
[349854375,1737461455458,-500.0,0.00020546,2]
[349854376,1737461455467,-500.0,0.00020547,2]
[349854377,1737461455477,-500.0,0.00020547,2]
[349854378,1737461455486,-567.41507845,0.00020547,2]
[349854379,1737461455496,-320.33809026,0.00020547,2]
[349854380,1737461455505,-500.0,0.00020547,2]
[349854381,1737461455516,-500.0,0.00020547,2]
[349854382,1737461455525,-500.0,0.00020547,2]
[349854383,1737461455535,-500.0,0.00020547,2]
[349854384,1737461455544,-500.0,0.00020547,2]
[349854385,1737461455555,-568.32,0.00020547,2]
[349854386,1737461455564,-566.77,0.00020547,2]
[349854387,1737461455574,-500.0,0.00020547,2]
[349854388,1737461455583,-256.4022282,0.00020547,2]
[349854389,1737461455592,-500.0,0.00020547,2]
[349854390,1737461455603,-500.0,0.00020547,2]
[349854391,1737461455612,-548.75,0.00020547,2]
[349854392,1737461455622,-500.0,0.00020547,2]
[349854393,1737461455632,-500.0,0.00020547,2]
[349854394,1737461455642,-1039.45,0.00020547,2]
[349854395,1737461455652,-500.0,0.00020547,2]
[349854396,1737461455663,-500.0,0.00020547,2]
[349854397,1737461455674,-215.11823575,0.00020547,2]
[349854398,1737461455684,-500.0,0.00020547,2]
[349854399,1737461455693,-500.0,0.00020547,2]
[349854400,1737461455703,-500.0,0.00020547,2]
[349854401,1737461455713,-500.0,0.00020547,2]
[349854402,1737461455724,-500.0,0.00020547,2]
[349854403,1737461455733,-500.0,0.00020547,2]
[349854404,1737461455743,-500.0,0.00020547,2]
[349854405,1737461455752,-500.0,0.00020547,2]
[349854406,1737461455762,-500.0,0.00020547,2]
[349854407,1737461455771,-500.0,0.00020547,2]
[349854408,1737461455781,-500.0,0.00020547,2]
[349854409,1737461455790,-500.0,0.00020547,2]
[349854410,1737461455800,-500.0,0.00020547,2]
[349854411,1737461455810,-500.0,0.00020547,2]
[349854412,1737461455820,-500.0,0.00020547,2]
[349854413,1737461455830,-500.0,0.00020547,2]
[349854414,1737461455840,-500.0,0.00020547,2]
[349854415,1737461455849,-167.14536902,0.00020547,2]
[349854416,1737461455859,-500.0,0.00020547,2]
[349854417,1737461455869,-500.0,0.00020547,2]
[349854418,1737461455879,-500.0,0.00020547,2]
[349854419,1737461455888,-500.0,0.00020547,2]
[349854420,1737461455898,-500.0,0.00020547,2]
[349854421,1737461455908,-500.0,0.00020547,2]
[349854422,1737461455918,-500.0,0.00020547,2]
[349854423,1737461455928,-500.0,0.00020547,2]
[349854424,1737461455938,-500.0,0.00020547,2]
[349854425,1737461455947,-1323.74,0.00020547,2]
[349854426,1737461455957,-500.0,0.00020547,2]
[349854427,1737461455967,-500.0,0.00020547,2]
[349854428,1737461455977,-647.7,0.00020547,2]
[349854429,1737461455987,-846.54,0.00020547,2]
[349854430,1737461455997,-1000.0,0.00020547,2]
[349854431,1737461456007,-719.1,0.00020547,2]
[349854432,1737461456017,-500.0,0.00020547,2]
[349854433,1737461456026,-1158.43,0.00020547,2]
[349854434,1737461456036,-150.0,0.00020562,2]
[349854435,1737461456047,-5000.0,0.00020578,2]
[349854436,1737461456056,-150.0,0.00020584,2]
[349854437,1737461456066,-5000.0,0.00020587,2]
[349854438,1737461456076,-2183.97,0.000206,2]
[349854439,1737461456085,-1962.6,0.0002061,2]
[349854440,1737461456095,-5000.0,0.00020617,2]
[349854441,1737461456106,-897.0,0.0002062,2]
[349854442,1737461456115,-206.17630001,0.00020627,2]
[349854443,1737461456125,-6667.59248049,0.00020646,2]
[349854444,1737461456135,-177.74927331,0.00020682,2]
[349854445,1737461456145,-514.66,0.00020683,2]
[349854446,1737461456155,-1786.21,0.00020696,2]
[349854447,1737461456166,-300.0,0.00020699,2]
[349854448,1737461456176,-252.84447476,0.00020715,2]
[349854449,1737461456186,-524.13,0.0002072,2]
[349854450,1737461456197,-692.62,0.00020721,2]
[349854451,1737461456207,-1336.51,0.00020721,2]
[349854452,1737461456217,-6741.85,0.00020721,2]
[349854453,1737461456228,-615.77,0.00020721,2]
[349854454,1737461456239,-1334.1,0.00020721,2]
[349854455,1737461456253,-1481.38,0.00020721,2]
[349854456,1737461456263,-500.0,0.00020721,2]
[349854457,1737461456273,-2097.97,0.00020721,2]
[349854458,1737461456283,-589.95,0.00020721,2]
[349854459,1737461456296,-500.0,0.00020721,2]
[349854460,1737461456308,-959.96,0.00020721,2]
[349854461,1737461456318,-595.73,0.00020721,2]
[349854462,1737461456328,-500.0,0.00020721,2]
[349854463,1737461456338,-1041.40743834,0.00020767,2]
[349854464,1737461456348,-5000.0,0.00020778,2]
[349854465,1737461456358,-1000.0,0.00020783,2]
[349854466,1737461456368,-5000.0,0.00020787,2]
[349854467,1737461456380,-152.0,0.00020803,3]
[349854468,1737461456389,-206.17630001,0.00020809,2]
[349854469,1737461456400,-150.0,0.00020815,2]
[349854470,1737461456410,-150.0,0.00020815,2]
[349854471,1737461456420,-150.979,0.00020815,2]
[349854472,1737461456430,-233.118,0.00020815,2]
[349854473,1737461456440,-150.0,0.00020815,2]
[349854474,1737461456449,-150.0,0.00020815,2]
[349854475,1737461456459,-150.0,0.00020815,2]
[349854476,1737461456468,-2018.0,0.00020815,2]
[349854477,1737461456478,-1269.0,0.00020815,2]
[349854478,1737461456488,-219.286,0.00020815,2]
[349854479,1737461456497,-25000.0,0.00020817,2]
[349854480,1737461456507,-500.0,0.00020818,2]
[349854481,1737461456517,-385.638789,0.00020818,2]
[349854482,1737461456527,-663.07,0.00020818,2]
[349854483,1737461456537,-500.0,0.00020818,2]
[349854484,1737461456549,-670.94,0.00020818,2]
[349854485,1737461456558,-221.865687,0.00020818,2]
[349854486,1737461456569,-646.9,0.00020818,2]
[349854487,1737461456579,-500.0,0.00020818,2]
[349854488,1737461456590,-659.65,0.00020818,2]
[349854489,1737461456601,-1477.39,0.00020818,2]
[349854490,1737461456611,-644.28,0.00020818,2]
[349854491,1737461456622,-732.84,0.00020818,2]
[349854492,1737461456632,-607.26,0.00020818,2]
[349854493,1737461456642,-1178.62,0.00020818,2]
[349854494,1737461456652,-500.0,0.00020818,2]
[349854495,1737461456662,-1229.18,0.00020818,2]
[349854496,1737461456673,-939.27,0.00020818,2]
[349854497,1737461456683,-1317.35,0.00020818,2]
[349854498,1737461456693,-1423.55,0.00020818,2]
[349854499,1737461456704,-1041.93,0.00020818,2]
[349854500,1737461456714,-890.96,0.00020818,2]
[349854501,1737461456724,-760.13,0.00020818,2]
[349854502,1737461456735,-739.73,0.00020818,2]
[349854503,1737461456745,-633.13,0.00020818,2]
[349854504,1737461456755,-1676.92,0.00020818,2]
[349854505,1737461456765,-1682.96,0.00020818,2]
[349854506,1737461456775,-1175.89,0.00020818,2]
[349854507,1737461456785,-612.0,0.00020818,2]
[349854508,1737461456797,-581.49,0.00020818,2]
[349854509,1737461456806,-1621.97,0.00020818,2]